bitfinex-derivatives/quotes_ETHF0:USTF0_20251007
["timestamp","ask_amount","ask_price","bid_price","bid_amount"]
[1759817139569,0.4283,4710.9,4710.8,0.5319]
[1759817139766,0.9611,4710.9,4710.8,0.5319]
[1759817139968,3.66105776,4710.9,4710.8,0.5319]
[1759817140268,3.66105776,4710.9,4710.8,0.7465]
[1759817140568,3.66105776,4710.9,4710.8,0.7486036]
[1759817142563,3.66105776,4710.9,4710.8,0.5340036]
[1759817142761,3.66105776,4710.9,4710.8,0.0021036]
[1759817144174,3.66105776,4710.9,4710.8,0.2122036]
[1759817144465,3.66105776,4710.9,4710.8,0.5340036]
[1759817145460,3.66105776,4710.9,4710.8,0.2122036]
[1759817145666,3.66105776,4710.9,4710.8,0.0021036]
[1759817146368,2.69995776,4710.9,4710.8,0.7486036]
[1759817146560,2.91195776,4710.9,4710.8,0.7486036]
[1759817146767,0.212,4710.9,4710.8,0.7486036]
[1759817147070,3.22231728,4710.9,4710.8,0.7486036]
[1759817148374,3.01031728,4710.9,4710.8,0.7486036]
[1759817148566,2.80161728,4710.9,4710.8,0.7486036]
[1759817148767,3.01361728,4710.9,4710.8,0.7486036]
[1759817149065,0.212,4710.9,4710.8,0.7486036]
[1759817149263,3.72425396,4710.9,4710.8,0.7486036]
[1759817149460,3.72425396,4710.9,4710.8,0.2122036]
[1759817149665,3.72425396,4710.9,4710.8,0.5340036]
[1759817149968,3.72425396,4710.9,4710.8,0.7486036]
[1759817154078,3.72425396,4710.9,4710.8,0.0021036]
[1759817156872,3.72425396,4710.9,4710.8,0.2122036]
[1759817157072,3.51225396,4710.9,4710.8,0.5340036]
[1759817157375,3.72425396,4710.9,4710.8,0.7486036]
[1759817157980,3.72425396,4710.9,4710.8,0.5340036]
[1759817158380,3.72425396,4710.9,4710.8,0.0021036]
[1759817162179,4.17161901,4710.9,4710.8,0.0021036]
[1759817164179,4.17161901,4710.9,4707.8,33.118]
[1759817164180,0.7491,4709.7,4709.6,0.7465]
[1759817164383,1.40846505,4709.7,4709.6,0.7465]
[1759817164577,3.19603804,4709.7,4709.6,0.7465]
[1759817164882,2.02510499,4711.5,4710.3,0.7497]
[1759817164883,3.2078,4710.4,4710.3,0.7497]
[1759817165072,4.0757454,4710.4,4710.3,0.7497]
[1759817165272,7.1518214,4710.4,4710.3,0.7497]
[1759817165676,3.9440214,4710.4,4710.3,0.7497]
[1759817167480,3.1994214,4710.4,4710.3,0.7497]
[1759817167686,3.4114214,4710.4,4710.3,1.13165]
[1759817168383,3.6186214,4710.4,4710.3,1.13165]
[1759817169184,0.126,4711.5,4710.3,1.13165]
[1759817169185,1.50943889,4711.5,4711.2,0.3216]
[1759817169379,0.7458,4711.6,4711.5,0.7497]
[1759817169580,0.9578,4711.6,4711.5,0.7497]
[1759817169775,0.4204,4711.2,4711.1,0.5321]
[1759817170080,0.7458,4711.2,4711.1,0.7497]
[1759817170279,0.74805492,4711.2,4711.1,0.7497]
[1759817172778,0.74805492,4711.2,4711.1,0.5321]
[1759817174179,0.74805492,4711.2,4711.1,0.7497]
[1759817174485,0.3254,4711.1,4710.8,0.3216]
[1759817174691,0.4192,4711.0,4710.9,0.7497]
[1759817175185,0.9578,4711.0,4710.6,41.1216]
[1759817175384,0.9578,4711.0,4710.9,0.5321]
[1759817175790,1.0803,4711.0,4710.9,0.5321]
[1759817176192,1.0803,4711.0,4710.9,0.7497]
[1759817176885,0.7458,4710.4,4710.3,0.5321]
[1759817177187,0.9578,4710.4,4710.3,0.5321]
[1759817177395,0.9578,4710.4,4709.8,3.2078]
[1759817177396,0.7458,4709.9,4709.8,3.2078]
[1759817177686,0.9578,4709.9,4709.8,3.2078]
[1759817178094,0.7458,4709.7,4709.6,0.53360918]
[1759817178291,0.9578,4709.7,4709.6,0.75120918]
[1759817178486,0.7458,4710.3,4710.2,0.7497]
[1759817178680,0.9578,4710.3,4710.2,0.7497]
[1759817178890,3.65944684,4710.3,4710.2,0.7497]
[1759817180488,3.44744684,4710.3,4710.2,0.7497]
[1759817180992,3.65944684,4710.3,4710.2,0.7497]
[1759817181189,4.10307984,4710.3,4710.2,0.7497]
[1759817181889,3.89107984,4710.3,4710.2,0.7497]
[1759817182094,0.38196,4710.2,4709.7,0.3216]
[1759817182282,0.38196,4710.2,4709.7,0.7497]
[1759817182283,0.7458,4709.8,4709.7,0.7497]
[1759817182591,1.401433,4709.8,4709.7,0.7497]
[1759817182786,4.51238513,4709.8,4709.6,0.00150918]
[1759817182993,1.189433,4709.7,4709.6,0.00150918]
[1759817183394,3.91839513,4709.7,4709.6,0.00150918]
[1759817185290,4.13039513,4709.7,4709.6,0.00150918]
[1759817185494,3.91839513,4709.7,4709.6,0.00150918]
[1759817185694,3.91839513,4709.7,4709.6,0.53360918]
[1759817185993,4.13039513,4709.7,4709.6,0.75120918]
[1759817186994,4.51238513,4709.7,4709.6,0.00150918]
[1759817187991,3.91839513,4709.7,4709.6,0.00150918]
[1759817188291,4.13039513,4709.7,4709.6,0.00150918]
[1759817191298,4.13039513,4709.7,4708.7,3.2078]
[1759817191299,0.4204,4708.8,4708.3,0.7037]
[1759817191495,0.3254,4708.6,4708.3,0.3216]
[1759817191692,0.7458,4708.4,4708.3,0.5321]
[1759817191893,0.7458,4708.4,4708.3,0.7497]
[1759817192197,0.7458,4708.4,4708.3,0.75127577]
[1759817192398,0.7458,4708.4,4708.3,0.21207577]
[1759817192595,0.7458,4708.4,4708.3,0.75127577]
[1759817197497,0.2072,4708.4,4708.3,0.75127577]
[1759817197901,0.4192,4708.4,4708.3,0.75127577]
[1759817198199,0.9637,4708.4,4708.3,0.75127577]
[1759817198698,0.9637,4708.4,4708.3,0.00157577]
[1759817199404,0.9637,4708.4,4708.3,0.71957577]
[1759817208911,0.2152,4708.9,4708.8,0.718]
[1759817209111,3.2078,4709.0,4708.8,0.718]
[1759817209316,3.5327,4709.5,4708.9,0.718]
[1759817209615,3.9675,4709.5,4709.4,0.718]
[1759817209807,0.9717,4709.5,4709.4,0.718]
[1759817210404,0.7597,4709.5,4709.4,0.718]
[1759817210603,0.9717,4709.5,4709.4,0.718]
[1759817210811,0.7597,4709.5,4709.4,0.718]
[1759817211014,0.8898,4709.5,4709.4,0.5045]
[1759817211213,0.8898,4709.5,4709.4,0.2]
[1759817211814,1.1018,4709.5,4709.4,0.5045]
[1759817213921,0.8898,4709.5,4709.4,0.5045]
[1759817214127,1.1018,4709.5,4709.4,0.5045]
[1759817214923,1.1018,4709.5,4709.4,0.2]
[1759817215122,0.2152,4710.4,4710.3,0.718]
[1759817215414,3.2078,4710.9,4710.8,0.718]
[1759817216017,0.70681,4710.8,4710.6,40.8]
[1759817216216,0.7597,4710.7,4710.6,40.8]
[1759817216420,0.81672,4710.6,4710.5,0.2]
[1759817216616,1.14162,4710.6,4710.5,0.5045]
[1759817216813,1.14162,4710.6,4710.5,0.718]
[1759817218710,0.4348,4710.2,4710.1,0.3045]
[1759817218908,1.14169,4709.8,4709.7,0.2]
[1759817219420,1.14169,4709.8,4709.7,0.718]
[1759817219616,0.7597,4709.8,4709.7,0.718]
[1759817220008,0.212,4710.2,4710.1,0.718]
[1759817220009,0.2152,4710.2,4710.1,0.718]
[1759817220409,2.9378175,4710.2,4710.1,0.718]
[1759817220611,3.2627175,4710.2,4710.1,0.718]
[1759817222017,3.4823175,4710.2,4710.1,0.718]
[1759817222421,0.212,4710.4,4710.1,0.718]
[1759817222621,0.7597,4710.8,4710.7,0.2]
[1759817222814,0.9717,4710.8,4710.7,0.5045]
[1759817223010,3.78312224,4710.8,4710.7,0.718]
[1759817223913,3.57112224,4710.8,4710.7,0.718]
[1759817224219,3.2078,4710.9,4710.8,0.3162]
[1759817224421,3.2078,4710.9,4710.8,0.7285]
[1759817224620,3.4222,4710.9,4710.8,0.7285]
[1759817225022,3.7496,4710.9,4710.8,0.7285]
[1759817225813,3.4222,4710.9,4710.8,0.7285]
[1759817226013,3.2078,4710.9,4710.8,0.7285]
[1759817226520,3.4222,4710.9,4710.8,0.7285]
[1759817226725,3.7496,4710.9,4710.8,0.7285]
[1759817227018,3.964,4710.9,4710.8,0.7285]
[1759817227816,3.4222,4710.9,4710.8,0.7285]
[1759817228020,0.54165492,4711.2,4710.9,0.3162]
[1759817228225,0.75605492,4711.2,4711.1,0.7285]
[1759817228421,0.21665492,4711.2,4711.1,0.7285]
[1759817228626,0.75845492,4711.2,4711.1,0.7285]
[1759817228924,0.75845492,4711.2,4711.1,41.5285]
[1759817230014,0.00225492,4711.2,4711.1,41.5285]
[1759817230527,0.32965492,4711.2,4711.1,41.5285]
[1759817231620,0.32965492,4711.2,4711.1,41.2123]
[1759817231820,0.32965492,4711.2,4711.1,41.0004]
[1759817232418,0.75845492,4711.2,4711.1,0.2004]
[1759817233422,0.43105492,4711.2,4711.1,1.11038]
[1759817233626,0.00225492,4711.2,4711.1,1.11038]
[1759817234222,0.00225492,4711.2,4711.1,6.11038]
[1759817235622,0.00225492,4711.2,4711.1,0.7285]
[1759817235816,0.21665492,4711.2,4711.1,0.7285]
[1759817237429,0.75845492,4711.2,4711.1,0.7285]
[1759817238225,0.43105492,4711.2,4711.1,0.7285]
[1759817238426,0.21665492,4711.2,4711.1,0.7285]
[1759817239029,0.54405492,4711.2,4711.1,0.7285]
[1759817239627,0.21665492,4711.2,4711.1,0.7285]
[1759817239829,0.00225492,4711.2,4711.1,0.7285]
[1759817240837,0.21665492,4711.2,4711.1,0.7285]
[1759817242339,0.00225492,4711.2,4711.1,0.7285]
[1759817244438,0.21665492,4711.2,4711.1,0.7285]
[1759817244637,0.54405492,4711.2,4711.1,0.7285]
[1759817246644,0.21665492,4711.2,4711.1,0.7285]
[1759817249738,0.00225492,4711.2,4711.1,0.7285]
[1759817250842,3.4222,4712.0,4711.9,0.7285]
[1759817251037,4.19151848,4712.0,4711.9,0.7285]
[1759817251649,4.19416369,4712.0,4711.9,0.73027684]
[1759817252238,4.40856369,4712.0,4711.9,0.73027684]
[1759817252536,4.40856369,4712.0,4711.9,0.00177684]
[1759817252537,4.53886369,4712.0,4711.9,0.00177684]
[1759817252740,4.53886369,4712.0,4711.9,0.51837684]
[1759817252938,4.53886369,4712.0,4711.9,0.00177684]
[1759817253136,12.24764727,4712.0,4711.9,0.00177684]
[1759817253841,12.45964727,4712.0,4711.9,0.00177684]
[1759817257340,0.8453,4711.0,4710.9,0.2138]
[1759817257547,1.28721848,4711.0,4710.8,0.3286]
[1759817257845,1.15791848,4710.9,4710.8,0.5424]
[1759817258337,1.15791848,4710.9,4710.8,0.5447291]
[1759817260446,1.36991848,4710.9,4710.8,0.2161291]
[1759817260746,1.36991848,4710.9,4710.8,0.0023291]
[1759817260944,4.10845192,4710.9,4710.8,0.0023291]
[1759817261147,0.716,4709.9,4709.8,1.35688999]
[1759817261445,0.716,4709.9,4709.8,0.2138]
[1759817261646,0.716,4709.9,4709.8,0.5424]
[1759817262045,0.716,4709.9,4709.8,0.5451335]
[1759817262946,0.716,4709.9,4709.8,0.7604335]
[1759817264151,0.716,4709.9,4709.8,1.1424235]
[1759817264342,0.2169,4709.9,4709.8,0.7604335]
[1759817264539,0.2992,4710.2,4709.9,0.3286]
[1759817264744,0.5161,4710.2,4710.1,0.4291]
[1759817264945,0.5161,4710.2,4710.1,0.7577]
[1759817265443,0.716,4710.2,4710.1,0.7577]
[1759817265639,0.2992,4711.0,4710.9,0.4291]
[1759817265951,0.95815875,4711.0,4710.9,0.4291]
[1759817266247,1.15805875,4711.0,4710.9,0.7577]
[1759817266938,0.44205875,4711.0,4710.9,0.7577]
[1759817267149,0.44205875,4711.0,4710.9,5.7577]
[1759817267345,0.44205875,4711.0,4710.9,5.9697]
[1759817267647,3.2078,4711.1,4711.0,1.26899]
[1759817267848,3.2078,4711.1,4711.0,42.06899]
[1759817268144,3.9238,4711.8,4711.7,0.2138]
[1759817268349,4.36589793,4711.8,4711.7,0.2138]
[1759817270546,4.36589793,4711.8,4711.7,0.7577]
[1759817273349,3.9238,4711.8,4711.7,0.7577]
[1759817274053,3.9238,4711.8,4711.4,0.3286]
[1759817274249,0.2169,4711.5,4711.4,0.7577]
[1759817275252,0.5161,4711.5,4711.4,0.7577]
[1759817275952,0.5112,4711.7,4711.4,0.4291]
[1759817276152,0.716,4711.6,4711.5,0.7577]
[1759817277354,3.507,4711.8,4711.6,0.3286]
[1759817277550,0.2169,4711.7,4711.6,0.7577]
[1759817277754,0.716,4711.7,4711.6,0.7577]
[1759817281055,0.2169,4711.3,4711.2,0.7577]
[1759817281256,0.5161,4711.3,4711.2,0.7577]
[1759817281458,0.2992,4711.7,4711.6,0.7577]
[1759817281758,0.5161,4711.7,4711.6,0.7577]
[1759817281949,3.2078,4711.8,4711.6,0.4291]
[1759817282154,3.2078,4711.8,4711.7,0.7577]
[1759817282354,0.2169,4711.8,4711.7,1.13953]
[1759817282755,0.2169,4711.8,4711.5,0.1294]
[1759817282756,0.00264521,4712.0,4711.9,1.13952]
[1759817283550,3.2078,4712.5,4712.4,0.38178]
[1759817283751,0.2992,4712.8,4712.4,1.13948]
[1759817283953,0.2169,4712.5,4712.4,0.81088]
[1759817284251,0.716,4712.8,4712.7,0.4291]
[1759817284451,0.716,4712.8,4712.7,0.7584]
[1759817284656,0.00260036,4712.8,4712.7,0.7584]
[1759817284857,0.21140036,4712.8,4712.7,0.7584]
[1759817285064,0.52450036,4712.8,4712.7,41.5584]
[1759817286153,0.52450036,4712.8,4712.7,41.0138]
[1759817286357,0.52450036,4712.8,4712.7,40.8]
[1759817286762,0.72910036,4712.8,4712.7,0.5383]
[1759817286960,0.72910036,4712.8,4712.7,0.7548]
[1759817287862,0.21140036,4712.8,4712.7,0.7548]
[1759817288162,0.52450036,4712.8,4712.7,0.7548]
[1759817288365,0.72910036,4712.8,4712.7,0.209]
[1759817288559,0.2088,4712.6,4712.5,40.8]
[1759817288766,0.7265,4712.6,4712.5,41.1293]
[1759817288960,0.00260036,4712.8,4712.7,0.4255]
[1759817289168,0.72910036,4712.8,4712.7,0.7548]
[1759817289956,1.11085036,4712.8,4712.5,40.8]
[1759817290172,0.4134,4712.6,4712.5,40.8]
[1759817290366,0.7265,4712.6,4712.5,40.8]
[1759817290565,0.21140036,4712.8,4712.7,0.7548]
[1759817291669,0.41600036,4712.8,4712.7,0.3293]
[1759817291870,0.7265,4712.2,4712.1,0.209]
[1759817293372,0.7265,4712.2,4712.1,0.7548]
[1759817294364,3.7329,4712.5,4712.2,0.3293]
[1759817294673,4.1463,4712.5,4712.4,0.7548]
[1759817294873,4.58613139,4712.5,4712.4,0.7548]
[1759817295076,4.70643139,4712.5,4712.4,0.7548]
[1759817295574,4.70665391,4712.5,4712.4,0.209]
[1759817295765,4.70665391,4712.5,4712.1,0.3293]
[1759817295967,0.7265,4712.2,4712.1,0.5383]
[1759817296568,0.7265,4712.2,4712.1,0.7548]
[1759817296768,0.5177,4712.2,4712.1,0.7548]
[1759817297075,0.7265,4712.4,4712.3,0.7548]
[1759817297278,1.16666822,4712.4,4712.3,0.7548]
[1759817297474,0.44016822,4712.4,4712.3,0.7548]
[1759817297682,3.2078,4712.5,4712.4,0.71108]
[1759817297879,3.2078,4712.5,4712.4,1.13658]
[1759817298380,0.72910036,4712.8,4712.7,1.13655]
[1759817298572,1.169366,4712.8,4712.7,1.13655]
[1759817299479,0.651666,4712.8,4712.7,1.13655]
[1759817299681,0.442866,4712.8,4712.7,1.13655]
[1759817299874,0.00260036,4712.8,4712.7,1.13655]
[1759817300880,0.72910036,4712.8,4712.7,1.13655]
[1759817302475,1.16941306,4712.8,4712.7,0.7548]
[1759817302781,0.72910036,4712.8,4712.7,0.7548]
[1759817304178,0.72910036,4712.8,4712.7,0.5383]
[1759817304380,0.8468,4712.5,4712.0,0.1245]
[1759817304879,0.3131,4712.4,4712.3,0.209]
[1759817305078,0.7265,4712.4,4712.3,0.209]
[1759817306482,0.7265,4712.4,4712.3,0.5383]
[1759817306785,0.7265,4712.4,4712.3,0.7548]
[1759817307080,0.4134,4711.9,4711.8,3.9626]
[1759817307283,0.7265,4711.9,4711.8,3.9626]
[1759817307882,0.7265,4711.9,4711.8,44.7626]
[1759817308581,0.4134,4711.9,4711.8,44.7626]
[1759817308782,0.7265,4711.9,4711.8,44.9746]
[1759817309787,0.2088,4711.9,4711.8,41.7668]
[1759817310182,0.5219,4711.9,4711.8,0.7548]
[1759817310388,0.7265,4711.9,4711.8,0.7548]
[1759817310787,0.4134,4711.9,4711.8,0.7548]
[1759817311085,0.2088,4711.9,4711.8,0.7548]
[1759817312184,0.7265,4711.9,4711.8,0.7548]
[1759817312389,0.7265,4711.9,4711.8,0.209]
[1759817312787,1.1671566,4711.9,4711.8,0.209]
[1759817313284,1.1671566,4711.9,4711.5,0.92015]
[1759817313285,0.4134,4711.6,4711.5,0.92015]
[1759817313485,0.7265,4711.6,4711.5,1.13665]
[1759817313891,0.7265,4711.6,4711.5,0.7548]
[1759817319396,0.7632,4711.2,4711.1,0.7375]
[1759817319797,0.7632,4711.2,4711.1,41.5375]
[1759817321794,0.2159,4711.2,4711.1,41.5375]
[1759817321996,0.7632,4711.6,4711.5,0.7375]
[1759817322196,1.20326883,4711.6,4711.5,0.7375]
[1759817322497,4.02385876,4711.6,4711.5,0.7375]
[1759817323302,3.58378993,4711.6,4711.5,0.7375]
[1759817324388,3.58378993,4711.6,4711.5,0.5181]
[1759817324794,4.02372133,4711.6,4711.5,0.5181]
[1759817324994,4.02372133,4711.6,4711.5,0.2145]
[1759817325193,3.58378993,4711.6,4711.5,0.2145]
[1759817325792,3.58378993,4711.6,4711.0,0.6459]
[1759817325793,0.7632,4711.1,4711.0,0.6459]
[1759817326396,0.7632,4711.1,4711.0,0.9495]
[1759817327395,0.7632,4711.1,4711.0,1.0743]
[1759817327790,0.2159,4711.1,4711.0,1.0743]
[1759817328001,0.7632,4711.5,4711.4,0.7375]
[1759817329600,3.2078,4711.6,4711.4,0.7375]
[1759817329797,3.2078,4711.6,4711.5,0.8623]
[1759817329997,3.4237,4711.6,4711.5,0.8623]
[1759817330197,6.52829153,4711.6,4711.5,0.8623]
[1759817330398,6.74619153,4711.6,4711.5,0.8623]
[1759817331605,6.74619153,4711.6,4711.5,0.7375]
[1759817332099,3.2078,4711.6,4711.5,0.8623]
[1759817332502,3.4237,4711.6,4711.5,0.8623]
[1759817332704,3.7531,4711.6,4711.5,0.8623]
[1759817333410,3.971,4711.6,4711.5,0.8623]
[1759817334503,0.7632,4711.6,4711.5,0.8623]
[1759817335402,0.7632,4711.6,4711.5,0.7375]
[1759817336011,0.7632,4711.6,4711.0,0.3368]
[1759817336310,0.4338,4711.6,4711.4,0.68545]
[1759817336509,0.7632,4711.5,4711.4,0.89995]
[1759817338104,0.7632,4711.5,4711.4,1.11935]
[1759817339110,0.212,4711.7,4711.5,0.38184]
[1759817339414,0.9752,4711.7,4711.6,0.7375]
[1759817339614,1.41586292,4711.7,4711.6,0.7375]
[1759817340810,1.41586292,4711.7,4711.6,0.2145]
[1759817341111,1.41586292,4711.7,4711.4,0.68546]
[1759817341414,0.8929,4711.5,4711.4,0.5181]
[1759817341918,1.33371369,4711.5,4711.4,0.7375]
[1759817344418,1.20401369,4711.5,4711.4,0.7375]
[1759817345015,0.4121,4711.1,4711.0,1.65828999]
[1759817345314,0.2002,4710.8,4710.7,3.5142]
[1759817345518,0.7413,4710.8,4710.7,3.5142]
[1759817345717,0.7413,4710.8,4710.7,3.723]
[1759817347916,0.79403,4710.5,4710.4,0.2088]
[1759817348110,0.79403,4710.5,4710.4,0.5152]
[1759817348316,0.4121,4710.5,4710.4,0.7332]
[1759817348516,0.7413,4710.5,4710.4,0.7332]
[1759817349715,0.50329,4711.0,4710.4,0.7332]
[1759817349921,0.44064116,4710.9,4710.8,0.4268]
[1759817350123,0.44064116,4710.9,4710.8,0.7332]
[1759817351021,0.97004116,4710.9,4710.8,0.7332]
[1759817351221,1.18194116,4710.9,4710.8,0.7332]
[1759817353425,0.7413,4710.9,4710.8,0.7332]
[1759817354019,1.18189528,4710.9,4710.8,0.7332]
[1759817354226,0.7413,4710.9,4710.8,0.7332]
[1759817355824,0.7413,4710.9,4710.5,0.1233]
[1759817355825,0.7413,4710.5,4710.4,0.89714]
[1759817356222,0.7413,4710.5,4710.4,1.11514]
[1759817356418,0.7413,4710.5,4710.4,0.7332]
[1759817356621,0.7413,4710.3,4710.2,3.2078]
[1759817356824,0.7413,4709.9,4709.8,0.5179335]
[1759817357121,0.7413,4709.9,4709.8,0.2115335]
[1759817357422,0.7413,4709.9,4709.8,0.7359335]
[1759817357629,0.5294,4709.9,4709.8,0.7359335]
[1759817360117,0.7413,4709.9,4709.8,0.7359335]
[1759817364935,1.12313,4711.8,4711.7,0.7332]
[1759817365237,0.4121,4711.5,4711.4,0.2088]
[1759817365421,3.2078,4711.9,4711.3,0.192]
[1759817365422,3.2078,4711.9,4711.8,0.7332]
[1759817365827,3.2078,4711.9,4711.8,41.5332]
[1759817368838,3.2078,4711.9,4711.8,41.7452]
[1759817369137,3.537,4711.9,4711.8,41.5332]
[1759817371541,3.537,4711.9,4711.8,40.8]
[1759817371738,3.537,4711.9,4711.8,41.1064]
[1759817371930,3.7372,4711.9,4711.8,0.3064]
[1759817372138,3.9491,4711.9,4711.8,0.5152]
[1759817373039,3.9491,4711.9,4711.8,0.7332]
[1759817374534,3.9491,4711.9,4711.8,0.2088]
[1759817374741,0.4099,4711.5,4711.4,40.8]
[1759817374930,0.7381,4711.5,4711.4,40.8]
[1759817375434,0.7381,4711.5,4711.4,0.7357]
[1759817378242,0.38185,4711.6,4711.5,0.5512]
[1759817378443,0.38183,4711.7,4711.6,0.7523]
[1759817379644,0.59253,4711.7,4711.6,0.7523]
[1759817380431,0.59253,4711.7,4711.6,0.9643]
[1759817381140,0.92043,4711.7,4711.6,0.9643]
[1759817381339,0.38183,4711.7,4711.6,0.9643]
[1759817382645,0.59253,4711.7,4711.6,0.9643]
[1759817383137,0.92043,4711.7,4711.6,0.9643]
[1759817388549,0.92043,4711.7,4711.3,40.8]
[1759817388550,0.70976,4711.4,4711.3,40.8]
[1759817388743,1.1314,4710.9,4710.8,0.7523]
[1759817389049,1.1314,4710.9,4710.8,0.9643]
[1759817389243,1.1314,4710.9,4710.8,41.7643]
[1759817392651,1.1314,4710.9,4710.8,41.5523]
[1759817392949,0.38189,4711.0,4710.9,0.7523]
[1759817393547,0.38188,4711.2,4711.1,1.13418]
[1759817393850,0.38188,4711.2,4711.1,1.34618]
[1759817394249,0.38186,4711.4,4711.3,0.4282]
[1759817394449,0.38186,4711.4,4711.3,0.9643]
[1759817394650,0.92046,4711.4,4711.3,0.9643]
[1759817397157,1.3619233,4711.4,4711.3,0.9643]
[1759817398049,1.57282415,4711.4,4711.3,0.2183]
[1759817398450,1.57282415,4711.4,4711.3,0.5424]
[1759817399249,1.19096415,4711.4,4711.3,0.7523]
[1759817399550,0.65216415,4711.4,4711.3,0.7523]
[1759817399748,0.98006415,4711.4,4711.3,0.7523]
[1759817400348,1.19096415,4711.4,4711.3,0.7523]
[1759817401548,0.3279,4711.3,4710.9,1.14308999]
[1759817401749,1.13141,4710.8,4710.7,1.46718999]
[1759817401947,0.7495,4710.8,4710.7,0.5424]
[1759817402143,0.7495,4710.8,4710.7,0.7523]
[1759817402763,0.7495,4710.8,4710.7,0.9643]
[1759817403448,0.70977,4711.3,4711.1,0.3241]
[1759817403651,0.65223069,4711.2,4711.1,0.7523]
[1759817403843,1.19103069,4711.2,4711.1,0.7523]
[1759817404556,0.44153069,4711.2,4711.1,0.7523]
[1759817405151,0.38186,4711.4,4711.2,0.38187]
[1759817405356,0.38186,4711.4,4711.3,0.7535]
[1759817405757,0.82333339,4711.4,4711.3,0.7535]
[1759817405958,0.38186,4711.4,4711.3,0.7535]
[1759817407657,0.59456,4711.4,4711.3,0.7535]
[1759817407861,1.57744403,4711.4,4711.3,0.7535]
[1759817408160,1.57744403,4711.4,4711.3,0.5345]
[1759817408756,0.94149,4711.0,4710.9,1.46178999]
[1759817408957,1.136,4710.9,4710.8,0.5345]
[1759817409151,1.136,4710.9,4710.8,0.7535]
[1759817414052,1.136,4710.9,4710.7,40.8]
[1759817414264,0.94153,4710.5,4710.4,0.2158]
[1759817414466,1.26413,4710.5,4710.4,0.2158]
[1759817414661,0.38196,4710.1,4710.0,4.77868999]
[1759817414964,1.13606,4710.1,4710.0,5.09738999]
[1759817415156,1.13606,4710.1,4710.0,45.89738999]
[1759817415354,1.13606,4710.1,4710.0,44.7543]
[1759817416162,1.13606,4710.1,4710.0,44.5423]
[1759817416364,1.13606,4710.1,4709.9,1.14308999]
[1759817416365,0.38198,4709.9,4709.8,1.14582349]
[1759817416666,1.13608,4709.9,4709.8,0.0027335]
[1759817417458,1.13608,4709.9,4709.8,0.2185335]
[1759817418164,1.13608,4709.9,4709.8,0.0027335]
[1759817419359,3.2078,4710.4,4709.9,0.3187]
[1759817419560,1.13605,4710.3,4710.2,0.5345]
[1759817419866,1.13607,4710.0,4709.9,0.9655]
[1759817420058,0.81347,4710.0,4709.9,0.9655]
[1759817420258,0.59467,4710.0,4709.9,0.9655]
[1759817420461,0.38197,4710.0,4709.9,41.7655]
[1759817422460,3.58974,4710.4,4710.3,0.3187]
[1759817422764,4.02124,4710.4,4710.3,0.5345]
[1759817423165,4.34384,4710.4,4710.3,0.5345]
[1759817426963,4.34384,4710.4,4710.3,0.7535]
[1759817427562,3.9619,4710.4,4710.3,0.7535]
[1759817434064,3.9619,4710.4,4709.8,0.0027335]
[1759817434065,1.13608,4709.9,4709.8,0.0027335]
[1759817434266,1.34808,4709.9,4709.8,0.0027335]
[1759817440976,1.34808,4709.9,4708.1,1.93011376]
[1759817440977,0.38212,4708.2,4708.1,1.93011376]
[1759817441178,3.83792,4708.2,4708.1,0.03158013]
[1759817441372,4.28046769,4708.2,4708.1,0.33518013]
[1759817441673,4.27186769,4708.2,4708.1,0.33518013]
[1759817441972,4.28282166,4708.2,4708.1,0.0336393]
[1759817443166,11.58562792,4708.2,4706.0,0.1191]
[1759817443368,0.38219,4707.4,4707.3,0.7146]
[1759817443764,0.212,4707.9,4707.5,0.3195]
[1759817443965,0.00235397,4708.2,4707.6,0.504]
[1759817444263,1.06935967,4708.1,4708.0,0.4227]
[1759817445074,0.59413,4708.1,4708.0,0.4227]
[1759817445771,1.06880975,4708.1,4708.0,0.4227]
[1759817446169,1.06880975,4708.1,4707.2,3.4198]
[1759817446170,3.633,4707.7,4704.0,7.00486726]
[1759817446372,1.18618,4705.0,4704.0,3.3269]
[1759817446570,3.2078,4704.8,4704.0,0.1191]
[1759817446763,3.633,4704.8,4704.7,0.2004]
[1759817446964,3.4159,4704.8,4704.7,0.411]
[1759817447165,6.14056303,4704.8,4704.7,0.41256542]
[1759817447372,3.63459175,4704.8,4704.7,0.41256542]
[1759817447671,6.66087887,4704.8,4704.7,0.00156542]
[1759817447869,6.87287887,4704.8,4704.7,0.00156542]
[1759817448280,11.87287887,4704.8,4704.7,0.00156542]
[1759817449272,0.4252,4703.6,4703.0,0.4227]
[1759817449577,0.7021,4703.6,4703.1,0.3036]
[1759817449777,0.4252,4703.3,4703.2,0.3036]
[1759817449975,0.4252,4703.3,4703.2,0.504]
[1759817450170,0.4252,4703.3,4703.2,0.50559213]
[1759817450871,3.2078,4703.8,4703.2,1.09871213]
[1759817451069,3.2078,4703.8,4703.7,0.504]
[1759817451274,3.4159,4703.8,4703.7,0.504]
[1759817451567,3.633,4703.8,4703.7,0.504]
[1759817451967,3.633,4703.8,4703.7,0.7146]
[1759817452370,3.4159,4703.8,4703.7,0.7146]
[1759817453170,4.29237,4703.8,4703.7,0.3036]
[1759817453473,0.7021,4703.7,4703.6,0.3036]
[1759817454175,0.4252,4703.7,4703.6,0.504]
[1759817455375,0.4252,4703.7,4703.6,0.7146]
[1759817458572,3.59028,4703.8,4703.6,0.7146]
[1759817458779,0.2081,4704.6,4704.5,0.8337]
[1759817458971,0.4252,4704.2,4704.1,0.504]
[1759817459172,0.4252,4704.2,4704.1,41.517]
[1759817459372,2.99594492,4704.6,4704.5,0.3195]
[1759817459373,0.4252,4704.6,4704.5,0.3195]
[1759817459673,0.4252,4704.6,4704.5,0.6231]